[Event "*** Titled Tuesday Blitz"]
[Site "Chess.com"]
[Date "2020.05.26"]
[Round "3"]
[White "artichaud"]
[Black "Bubachess1608"]
[Result "0-1"]
[WhiteElo "2095"]
[BlackElo "2304"]
[TimeControl "180+1"]
[EndTime "10:29:31 PDT"]
[Termination "Bubachess1608 won on time"]

1. e4 {[%clk 0:02:59.1]} 1... c5 {[%clk 0:02:59.2]} 2. Nf3 {[%clk 0:02:58.6]}
2... e6 {[%clk 0:02:59.3]} 3. d3 {[%clk 0:02:58.5]} 3... d5 {[%clk 0:02:57.8]}
4. Nbd2 {[%clk 0:02:57.5]} 4... Nf6 {[%clk 0:02:58.2]} 5. g3 {[%clk 0:02:57.5]}
5... Be7 {[%clk 0:02:58.2]} 6. Bg2 {[%clk 0:02:57.3]} 6... Nc6 {[%clk
0:02:58.6]} 7. O-O {[%clk 0:02:57.6]} 7... b6 {[%clk 0:02:58.1]} 8. Re1 {[%clk
0:02:56.2]} 8... Bb7 {[%clk 0:02:57.7]} 9. Qe2 {[%clk 0:02:46.2]} 9... Qc7
{[%clk 0:02:53.2]} 10. c3 {[%clk 0:02:30.7]} 10... dxe4 {[%clk 0:02:46]} 11.
dxe4 {[%clk 0:02:30.1]} 11... O-O {[%clk 0:02:46.2]} 12. e5 {[%clk 0:02:24.1]}
12... Nd7 {[%clk 0:02:41.5]} 13. a4 {[%clk 0:02:19.8]} 13... a5 {[%clk
0:02:40.9]} 14. Nc4 {[%clk 0:02:19]} 14... Ba6 {[%clk 0:02:40.1]} 15. Bf4 {[%clk
0:02:16.1]} 15... b5 {[%clk 0:02:34]} 16. axb5 {[%clk 0:02:14.3]} 16... Bxb5
{[%clk 0:02:33.4]} 17. Nfd2 {[%clk 0:02:11.7]} 17... Nb6 {[%clk 0:02:31.2]} 18.
Qe4 {[%clk 0:02:07.7]} 18... Nxc4 {[%clk 0:02:25.8]} 19. Nxc4 {[%clk 0:02:06.4]}
19... Bxc4 {[%clk 0:02:23.5]} 20. Qxc4 {[%clk 0:02:05.6]} 20... Rab8 {[%clk
0:02:22.9]} 21. b3 {[%clk 0:01:33.4]} 21... Rfd8 {[%clk 0:02:19.1]} 22. h4
{[%clk 0:01:31.7]} 22... h6 {[%clk 0:02:18.5]} 23. Bxc6 {[%clk 0:01:16.1]} 23...
Qxc6 {[%clk 0:02:16.6]} 24. Rxa5 {[%clk 0:01:17]} 24... Qd5 {[%clk 0:02:07.5]}
25. Qxd5 {[%clk 0:01:11.5]} 25... Rxd5 {[%clk 0:02:06.9]} 26. Rb1 {[%clk
0:01:10.4]} 26... g5 {[%clk 0:02:00.4]} 27. hxg5 {[%clk 0:01:06.6]} 27... hxg5
{[%clk 0:01:59.7]} 28. c4 {[%clk 0:01:05.2]} 28... Rd3 {[%clk 0:01:57.5]} 29.
Be3 {[%clk 0:01:05.2]} 29... Rdxb3 {[%clk 0:01:40.4]} 30. Rxb3 {[%clk
0:01:06.1]} 30... Rxb3 {[%clk 0:01:39.9]} 31. Bxc5 {[%clk 0:01:06.5]} 31... Bxc5
{[%clk 0:01:39.5]} 32. Rxc5 {[%clk 0:01:06.3]} 32... Rc3 {[%clk 0:01:35.4]} 33.
Kg2 {[%clk 0:01:05.9]} 33... g4 {[%clk 0:01:34.4]} 34. Kf1 {[%clk 0:01:02.9]}
34... Rc2 {[%clk 0:01:32.5]} 35. Ke1 {[%clk 0:00:54.7]} 35... Kf8 {[%clk
0:01:31.6]} 36. Rc7 {[%clk 0:00:50.8]} 36... Ke8 {[%clk 0:01:30.5]} 37. c5
{[%clk 0:00:50.4]} 37... Rc4 {[%clk 0:01:23.8]} 38. Kd2 {[%clk 0:00:47.8]} 38...
Re4 {[%clk 0:01:22.3]} 39. Rc8+ {[%clk 0:00:39.5]} 39... Kd7 {[%clk 0:01:17.8]}
40. Rg8 {[%clk 0:00:33.3]} 40... Kc6 {[%clk 0:01:00.4]} 41. Rg7 {[%clk
0:00:30.2]} 41... Kxc5 {[%clk 0:00:57.8]} 42. Rxf7 {[%clk 0:00:29.2]} 42... Rxe5
{[%clk 0:00:57.6]} 43. Rg7 {[%clk 0:00:24.1]} 43... Re4 {[%clk 0:00:56.6]} 44.
Kd3 {[%clk 0:00:22.4]} 44... Rd4+ {[%clk 0:00:55.6]} 45. Ke3 {[%clk 0:00:22.1]}
45... Ra4 {[%clk 0:00:53.3]} 46. Rd7 {[%clk 0:00:20.2]} 46... e5 {[%clk
0:00:47.4]} 47. Rd8 {[%clk 0:00:16.7]} 47... Rb4 {[%clk 0:00:46.7]} 48. Rd3
{[%clk 0:00:10.8]} 48... Rd4 {[%clk 0:00:44.9]} 49. Ra3 {[%clk 0:00:07.4]} 49...
Kd5 {[%clk 0:00:43.1]} 50. Ra6 {[%clk 0:00:06.1]} 50... Rb4 {[%clk 0:00:40.8]}
51. Rg6 {[%clk 0:00:05.7]} 51... Ra4 {[%clk 0:00:39.3]} 52. Rg8 {[%clk
0:00:05.5]} 52... Rb4 {[%clk 0:00:37.9]} 53. Rg7 {[%clk 0:00:05.3]} 53... Rb3+
{[%clk 0:00:36.2]} 54. Ke2 {[%clk 0:00:05]} 54... Rb4 {[%clk 0:00:35.7]} 55. Rg8
{[%clk 0:00:05]} 55... Rb2+ {[%clk 0:00:33.9]} 56. Ke3 {[%clk 0:00:05.1]} 56...
Rb3+ {[%clk 0:00:33.8]} 57. Ke2 {[%clk 0:00:04.3]} 57... Kd4 {[%clk 0:00:33.5]}
58. Rxg4+ {[%clk 0:00:03.6]} 58... e4 {[%clk 0:00:34]} 59. Rg8 {[%clk
0:00:02.2]} 59... Rb2+ {[%clk 0:00:33.8]} 60. Kf1 {[%clk 0:00:02.3]} 60... Ra2
{[%clk 0:00:28.6]} 61. Rd8+ {[%clk 0:00:02.1]} 61... Ke5 {[%clk 0:00:28.1]} 62.
Re8+ {[%clk 0:00:01.5]} 62... Kf5 {[%clk 0:00:27.8]} 63. Ke1 {[%clk 0:00:01.1]}
63... Rb2 {[%clk 0:00:26.3]} 64. Kf1 {[%clk 0:00:01.1]} 64... Ra2 {[%clk
0:00:24.8]} 65. Kg2 {[%clk 0:00:01.1]} 65... Rc2 {[%clk 0:00:24.2]} 66. Kh3
{[%clk 0:00:01.3]} 66... Ra2 {[%clk 0:00:18.8]} 67. g4+ {[%clk 0:00:00.3]} 67...
Kf4 {[%clk 0:00:17.4]} 0-1

[Event "*** Titled Tuesday Blitz"]
[Site "Chess.com"]
[Date "2020.05.26"]
[Round "3"]
[White "velemajstor767276"]
[Black "letsgoband"]
[Result "1-0"]
[WhiteElo "2591"]
[BlackElo "2386"]
[TimeControl "180+1"]
[EndTime "10:29:34 PDT"]
[Termination "velemajstor767276 won by resignation"]

1. d4 {[%clk 0:03:00.9]} 1... Nf6 {[%clk 0:02:59.9]} 2. c4 {[%clk 0:02:57.2]}
2... g6 {[%clk 0:03:00.2]} 3. Nc3 {[%clk 0:02:56.6]} 3... Bg7 {[%clk 0:03:00.7]}
4. e4 {[%clk 0:02:53.2]} 4... d6 {[%clk 0:03:01]} 5. Be2 {[%clk 0:02:50.5]} 5...
O-O {[%clk 0:03:00.4]} 6. Be3 {[%clk 0:02:51.1]} 6... e5 {[%clk 0:02:59.1]} 7.
d5 {[%clk 0:02:50.5]} 7... Na6 {[%clk 0:02:59.1]} 8. g4 {[%clk 0:02:50.5]} 8...
Nc5 {[%clk 0:02:58.6]} 9. f3 {[%clk 0:02:50.9]} 9... a5 {[%clk 0:02:52.2]} 10.
h4 {[%clk 0:02:50.1]} 10... h5 {[%clk 0:02:49.6]} 11. g5 {[%clk 0:02:50.2]}
11... Nh7 {[%clk 0:02:46]} 12. Qd2 {[%clk 0:02:46.2]} 12... f6 {[%clk
0:02:43.9]} 13. gxf6 {[%clk 0:02:43.9]} 13... Bxf6 {[%clk 0:02:44.8]} 14. O-O-O
{[%clk 0:02:36.4]} 14... Bxh4 {[%clk 0:02:42.4]} 15. Nh3 {[%clk 0:02:33.8]}
15... Kh8 {[%clk 0:01:53.3]} 16. Rdg1 {[%clk 0:02:31.1]} 16... Qf6 {[%clk
0:01:53.5]} 17. f4 {[%clk 0:01:23.7]} 17... Bxh3 {[%clk 0:01:16.3]} 18. Rxh3
{[%clk 0:01:22]} 18... Nd7 {[%clk 0:01:16.5]} 19. Rgh1 {[%clk 0:00:55.3]} 19...
exf4 {[%clk 0:00:59.3]} 20. Bd4 {[%clk 0:00:55.3]} 20... Ne5 {[%clk 0:00:58.9]}
21. Rxh4 {[%clk 0:00:55.9]} 21... f3 {[%clk 0:00:58.9]} 22. Bf1 {[%clk
0:00:55.2]} 22... Kg7 {[%clk 0:00:58.6]} 23. Be3 {[%clk 0:00:45.8]} 23... Rf7
{[%clk 0:00:54.6]} 24. Nb5 {[%clk 0:00:35.2]} 24... Re8 {[%clk 0:00:53.4]} 25.
Nd4 {[%clk 0:00:33.7]} 25... Ng4 {[%clk 0:00:50.9]} 26. Ne6+ {[%clk 0:00:29.5]}
26... Rxe6 {[%clk 0:00:49.1]} 27. dxe6 {[%clk 0:00:28.6]} 27... Qxe6 {[%clk
0:00:50]} 28. Bd4+ {[%clk 0:00:17.1]} 28... Kg8 {[%clk 0:00:50]} 29. Bd3 {[%clk
0:00:15.8]} 29... f2 {[%clk 0:00:41.1]} 30. Rf1 {[%clk 0:00:14.9]} 30... c5
{[%clk 0:00:36.9]} 31. Bc3 {[%clk 0:00:14]} 31... Qe7 {[%clk 0:00:33.5]} 32.
Rxg4 {[%clk 0:00:11.5]} 32... hxg4 {[%clk 0:00:33.5]} 33. Rxf2 {[%clk
0:00:12.2]} 33... g3 {[%clk 0:00:30.1]} 34. Rxf7 {[%clk 0:00:08.7]} 34... Qxf7
{[%clk 0:00:31]} 35. Qg2 {[%clk 0:00:07]} 35... Qf4+ {[%clk 0:00:30.5]} 36. Bd2
{[%clk 0:00:04.2]} 36... Qh4 {[%clk 0:00:30.4]} 37. Kc2 {[%clk 0:00:04]} 37...
Nf6 {[%clk 0:00:30.8]} 38. Qf3 {[%clk 0:00:03.5]} 38... Kg7 {[%clk 0:00:30.2]}
39. Bf4 {[%clk 0:00:03.2]} 39... g2 {[%clk 0:00:30.1]} 40. Be3 {[%clk
0:00:02.7]} 40... Qg4 {[%clk 0:00:30.1]} 41. Qxg4 {[%clk 0:00:02.2]} 41... Nxg4
{[%clk 0:00:31]} 42. Bg1 {[%clk 0:00:02.7]} 42... Ne5 {[%clk 0:00:31.6]} 43. Be2
{[%clk 0:00:02.6]} 43... g5 {[%clk 0:00:32]} 44. Kd2 {[%clk 0:00:02.8]} 44...
Kg6 {[%clk 0:00:32.2]} 45. Ke3 {[%clk 0:00:03.1]} 45... Nc6 {[%clk 0:00:32.7]}
46. b3 {[%clk 0:00:01.8]} 46... Kf6 {[%clk 0:00:33.2]} 47. Kf3 {[%clk
0:00:01.7]} 47... Ne5+ {[%clk 0:00:33.8]} 48. Kxg2 {[%clk 0:00:02.4]} 48... Ke6
{[%clk 0:00:33.9]} 49. Kf2 {[%clk 0:00:03]} 49... Nc6 {[%clk 0:00:34.3]} 50. Ke1
{[%clk 0:00:03.7]} 50... a4 {[%clk 0:00:34.8]} 51. Kd2 {[%clk 0:00:04.3]} 51...
axb3 {[%clk 0:00:35.7]} 52. axb3 {[%clk 0:00:04.8]} 52... Na5 {[%clk 0:00:35.9]}
53. Bd1 {[%clk 0:00:04.6]} 53... Nc6 {[%clk 0:00:36.4]} 54. Be3 {[%clk
0:00:05.2]} 54... g4 {[%clk 0:00:36.2]} 55. Bxg4+ {[%clk 0:00:04.5]} 55... Ke5
{[%clk 0:00:37.1]} 56. Bf3 {[%clk 0:00:05.1]} 56... Na5 {[%clk 0:00:23.7]} 57.
Kc3 {[%clk 0:00:05.3]} 57... Nc6 {[%clk 0:00:23.5]} 58. Bf2 {[%clk 0:00:04.9]}
58... Kf4 {[%clk 0:00:24.2]} 59. Bg2 {[%clk 0:00:04.8]} 59... Ne5 {[%clk
0:00:24.6]} 60. Kd2 {[%clk 0:00:04]} 60... Kg4 {[%clk 0:00:23]} 61. Be3 {[%clk
0:00:04.1]} 61... Kg3 {[%clk 0:00:23.3]} 62. Bf1 {[%clk 0:00:03.5]} 62... Kf3
{[%clk 0:00:23.6]} 63. Bd3 {[%clk 0:00:03.5]} 63... Ng4 {[%clk 0:00:23.3]} 64.
Bg5 {[%clk 0:00:03.5]} 64... Ne5 {[%clk 0:00:23]} 65. Be7 {[%clk 0:00:02.8]}
65... Nf7 {[%clk 0:00:23.4]} 66. Kc3 {[%clk 0:00:02.1]} 66... Kf4 {[%clk
0:00:23.8]} 67. Bf8 {[%clk 0:00:02.7]} 67... Ke5 {[%clk 0:00:24]} 68. Kd2 {[%clk
0:00:03.1]} 68... Kf4 {[%clk 0:00:23.8]} 69. Ke2 {[%clk 0:00:03.4]} 69... Kg4
{[%clk 0:00:23.6]} 70. Ke3 {[%clk 0:00:03.7]} 70... Kg3 {[%clk 0:00:23.8]} 71.
Be2 {[%clk 0:00:03.4]} 71... Kh4 {[%clk 0:00:23.8]} 72. Bf3 {[%clk 0:00:03.6]}
72... Kg5 {[%clk 0:00:23.4]} 73. Be7+ {[%clk 0:00:02.9]} 73... Kg6 {[%clk
0:00:23.1]} 74. Kf4 {[%clk 0:00:03.5]} 74... b6 {[%clk 0:00:22.7]} 75. Bg4
{[%clk 0:00:03.8]} 75... Ne5 {[%clk 0:00:22.6]} 76. Bf5+ {[%clk 0:00:04.4]}
76... Kf7 {[%clk 0:00:22.5]} 77. Bxd6 {[%clk 0:00:05]} 77... Nd3+ {[%clk
0:00:23.3]} 78. Ke3 {[%clk 0:00:05]} 78... Nc1 {[%clk 0:00:24.2]} 79. e5 {[%clk
0:00:04.8]} 79... Nxb3 {[%clk 0:00:24.6]} 80. e6+ {[%clk 0:00:05.4]} 80... Kf6
{[%clk 0:00:23.9]} 81. e7 {[%clk 0:00:04.9]} 81... Nd4 {[%clk 0:00:22]} 82. Bd7
{[%clk 0:00:03.6]} 1-0

[Event "*** Titled Tuesday Blitz"]
[Site "Chess.com"]
[Date "2020.05.26"]
[Round "3"]
[White "Gerasimenyuk_Miha"]
[Black "GMartin_Petrov"]
[Result "1-0"]
[WhiteElo "2407"]
[BlackElo "2578"]
[TimeControl "180+1"]
[EndTime "10:29:38 PDT"]
[Termination "Gerasimenyuk_Miha won by resignation"]

1. d4 {[%clk 0:03:00.6]} 1... Nf6 {[%clk 0:02:59.3]} 2. Nf3 {[%clk 0:03:00.2]}
2... e6 {[%clk 0:02:59.8]} 3. Bg5 {[%clk 0:02:58.2]} 3... h6 {[%clk 0:02:57.6]}
4. Bh4 {[%clk 0:02:56.2]} 4... b6 {[%clk 0:02:56.7]} 5. c3 {[%clk 0:02:55.8]}
5... Bb7 {[%clk 0:02:55.4]} 6. e3 {[%clk 0:02:51.1]} 6... c5 {[%clk 0:02:54.3]}
7. Nbd2 {[%clk 0:02:49.5]} 7... Be7 {[%clk 0:02:54.4]} 8. Bd3 {[%clk 0:02:46.1]}
8... g5 {[%clk 0:02:54.9]} 9. Bg3 {[%clk 0:02:42.7]} 9... h5 {[%clk 0:02:53.7]}
10. h4 {[%clk 0:02:42.1]} 10... g4 {[%clk 0:02:48.3]} 11. Ng5 {[%clk 0:02:38.9]}
11... Bxg2 {[%clk 0:02:44]} 12. Rg1 {[%clk 0:02:35.4]} 12... Bb7 {[%clk
0:02:40.4]} 13. Qc1 {[%clk 0:02:12.9]} 13... Nc6 {[%clk 0:02:35.5]} 14. Qc2
{[%clk 0:02:12.1]} 14... Rc8 {[%clk 0:02:31.5]} 15. dxc5 {[%clk 0:02:08.4]}
15... bxc5 {[%clk 0:02:29.1]} 16. O-O-O {[%clk 0:02:07.9]} 16... d5 {[%clk
0:02:13.6]} 17. Kb1 {[%clk 0:02:03.4]} 17... Nd7 {[%clk 0:02:02.2]} 18. Bg6
{[%clk 0:01:58.6]} 18... Bxg5 {[%clk 0:01:57.7]} 19. hxg5 {[%clk 0:01:58.9]}
19... Qxg5 {[%clk 0:01:41.5]} 20. Bd3 {[%clk 0:01:54.6]} 20... Nde5 {[%clk
0:01:24.5]} 21. f4 {[%clk 0:01:48.9]} 21... gxf3 {[%clk 0:01:23.7]} 22. Bxe5
{[%clk 0:01:41.4]} 22... Qxe5 {[%clk 0:01:23]} 23. Nxf3 {[%clk 0:01:40.7]} 23...
Qxe3 {[%clk 0:01:12.3]} 24. Ng5 {[%clk 0:01:37.5]} 24... Ne5 {[%clk 0:01:09]}
25. Bb5+ {[%clk 0:01:33.3]} 25... Bc6 {[%clk 0:00:25.9]} 26. Rde1 {[%clk
0:01:27.9]} 26... Qf4 {[%clk 0:00:22]} 27. Ref1 {[%clk 0:01:15.7]} 27... Qe3
{[%clk 0:00:21.5]} 28. Bxc6+ {[%clk 0:01:01.8]} 28... Rxc6 {[%clk 0:00:20.6]}
29. Re1 {[%clk 0:01:01.5]} 29... Qf4 {[%clk 0:00:20.2]} 30. Ref1 {[%clk
0:00:57.3]} 30... Qe3 {[%clk 0:00:19.1]} 31. Qa4 {[%clk 0:00:56.2]} 31... Ke7
{[%clk 0:00:14.7]} 32. Re1 {[%clk 0:00:54.2]} 32... Qd3+ {[%clk 0:00:14]} 33.
Ka1 {[%clk 0:00:54.2]} 33... Ra6 {[%clk 0:00:13.9]} 34. Qb3 {[%clk 0:00:48.9]}
34... Qc4 {[%clk 0:00:13.8]} 35. Qb7+ {[%clk 0:00:44.8]} 35... Nd7 {[%clk
0:00:13.8]} 36. a3 {[%clk 0:00:33.8]} 36... Rb8 {[%clk 0:00:11.3]} 37. Nxe6
{[%clk 0:00:24.5]} 37... Rxb7 {[%clk 0:00:09.5]} 38. Nxc5+ {[%clk 0:00:23.8]}
38... Kf8 {[%clk 0:00:06.7]} 39. Nxb7 {[%clk 0:00:22.4]} 39... Qc6 {[%clk
0:00:04.7]} 40. Nd8 {[%clk 0:00:17.1]} 40... Qf6 {[%clk 0:00:04.7]} 41. Rgf1
{[%clk 0:00:16.5]} 41... Qxd8 {[%clk 0:00:04]} 42. Rf5 {[%clk 0:00:16.1]} 42...
Rf6 {[%clk 0:00:04.5]} 43. Rxd5 {[%clk 0:00:16.2]} 43... Re6 {[%clk 0:00:04.2]}
44. Red1 {[%clk 0:00:16.4]} 44... Re7 {[%clk 0:00:04.5]} 45. Rxh5 {[%clk
0:00:16.7]} 45... Ke8 {[%clk 0:00:01.8]} 46. Rh8+ {[%clk 0:00:16.5]} 46... Nf8
{[%clk 0:00:02.4]} 47. Rxf8+ {[%clk 0:00:14.4]} 47... Kxf8 {[%clk 0:00:02.2]}
48. Rxd8+ {[%clk 0:00:15.3]} 48... Kg7 {[%clk 0:00:03.1]} 49. c4 {[%clk
0:00:15.4]} 49... f5 {[%clk 0:00:03.3]} 50. Rd4 {[%clk 0:00:15.6]} 50... Kf6
{[%clk 0:00:02.9]} 51. Kb1 {[%clk 0:00:16.1]} 51... Ke5 {[%clk 0:00:03]} 52. Rh4
{[%clk 0:00:16.8]} 52... f4 {[%clk 0:00:03]} 53. Kc2 {[%clk 0:00:16.8]} 53...
Ke4 {[%clk 0:00:03.3]} 54. Kd2 {[%clk 0:00:16.9]} 54... Rd7+ {[%clk 0:00:03.1]}
55. Ke2 {[%clk 0:00:17.1]} 55... Rg7 {[%clk 0:00:04]} 56. Rh2 {[%clk 0:00:17.2]}
56... f3+ {[%clk 0:00:03.4]} 57. Kf2 {[%clk 0:00:17.2]} 57... Rf7 {[%clk
0:00:04.3]} 58. Rh4+ {[%clk 0:00:16.7]} 58... Kd3 {[%clk 0:00:04.6]} 59. c5
{[%clk 0:00:17.2]} 59... Kc2 {[%clk 0:00:04.3]} 60. b4 {[%clk 0:00:17.2]} 60...
Kb3 {[%clk 0:00:04]} 61. c6 {[%clk 0:00:16.2]} 61... Kxa3 {[%clk 0:00:03.6]} 62.
b5 {[%clk 0:00:16.8]} 62... Re7 {[%clk 0:00:01.2]} 63. Rd4 {[%clk 0:00:16.7]}
63... Rc7 {[%clk 0:00:01.3]} 64. Rd7 {[%clk 0:00:16.9]} 64... Rc8 {[%clk
0:00:02.2]} 65. Rxa7+ {[%clk 0:00:16.7]} 65... Kb4 {[%clk 0:00:03.1]} 66. Rb7
{[%clk 0:00:16.9]} 66... Kc5 {[%clk 0:00:02.9]} 67. Kxf3 {[%clk 0:00:17]} 67...
Rf8+ {[%clk 0:00:03.6]} 68. Ke4 {[%clk 0:00:17.4]} 68... Re8+ {[%clk 0:00:04.5]}
69. Kf5 {[%clk 0:00:17.6]} 69... Rf8+ {[%clk 0:00:04.2]} 70. Ke6 {[%clk
0:00:17.7]} 70... Rc8 {[%clk 0:00:03.9]} 71. Kd7 {[%clk 0:00:17.4]} 71... Rh8
{[%clk 0:00:03.5]} 72. c7 {[%clk 0:00:16.5]} 72... Rh7+ {[%clk 0:00:03.7]} 73.
Ke6 {[%clk 0:00:16.7]} 73... Rh6+ {[%clk 0:00:03.4]} 74. Kf5 {[%clk 0:00:17.2]}
74... Rh5+ {[%clk 0:00:02.4]} 75. Kg4 {[%clk 0:00:17.8]} 75... Rh7 {[%clk
0:00:02]} 76. c8=Q+ {[%clk 0:00:17.9]} 1-0

[Event "*** Titled Tuesday Blitz"]
[Site "Chess.com"]
[Date "2020.05.26"]
[Round "3"]
[White "andy_rekt"]
[Black "Julianos82"]
[Result "1-0"]
[WhiteElo "2159"]
[BlackElo "2303"]
[TimeControl "180+1"]
[EndTime "10:29:43 PDT"]
[Termination "andy_rekt won by resignation"]

1. c4 {[%clk 0:03:00.9]} 1... c5 {[%clk 0:02:55.9]} 2. Nc3 {[%clk 0:03:01.4]}
2... b6 {[%clk 0:02:53.3]} 3. e4 {[%clk 0:02:58.2]} 3... Bb7 {[%clk 0:02:52.8]}
4. d3 {[%clk 0:02:54.1]} 4... Nc6 {[%clk 0:02:51.7]} 5. g3 {[%clk 0:02:53.5]}
5... g6 {[%clk 0:02:52]} 6. Bg2 {[%clk 0:02:53.5]} 6... Bg7 {[%clk 0:02:52.4]}
7. Nge2 {[%clk 0:02:53.6]} 7... e6 {[%clk 0:02:52.8]} 8. O-O {[%clk 0:02:53.2]}
8... Nge7 {[%clk 0:02:53]} 9. Be3 {[%clk 0:02:53.5]} 9... Nd4 {[%clk 0:02:52.8]}
10. Rb1 {[%clk 0:02:49]} 10... O-O {[%clk 0:02:43.1]} 11. b4 {[%clk 0:02:48.5]}
11... d6 {[%clk 0:02:38.7]} 12. f4 {[%clk 0:02:39.4]} 12... Rb8 {[%clk
0:02:15.2]} 13. bxc5 {[%clk 0:02:26.1]} 13... dxc5 {[%clk 0:01:54.4]} 14. e5
{[%clk 0:02:12.2]} 14... Bxg2 {[%clk 0:01:55.3]} 15. Kxg2 {[%clk 0:02:12.6]}
15... Nef5 {[%clk 0:01:50]} 16. Bf2 {[%clk 0:02:09]} 16... f6 {[%clk 0:01:43.6]}
17. g4 {[%clk 0:02:01.5]} 17... Nxe2 {[%clk 0:01:38.3]} 18. Qxe2 {[%clk
0:01:51.4]} 18... Nd4 {[%clk 0:01:28.4]} 19. Bxd4 {[%clk 0:01:48.9]} 19... Qxd4
{[%clk 0:01:28.9]} 20. exf6 {[%clk 0:01:43.9]} 20... Qxc3 {[%clk 0:01:20.1]} 21.
Qxe6+ {[%clk 0:01:35.8]} 21... Rf7 {[%clk 0:01:14.1]} 22. fxg7 {[%clk
0:01:33.6]} 22... Kxg7 {[%clk 0:01:00.7]} 23. Qe4 {[%clk 0:01:19.2]} 23... Rbf8
{[%clk 0:00:45.3]} 24. Rf2 {[%clk 0:01:09.8]} 24... Kg8 {[%clk 0:00:39.3]} 25.
Rbf1 {[%clk 0:01:08.3]} 25... Qf6 {[%clk 0:00:38.1]} 26. f5 {[%clk 0:01:05]}
26... Qh4 {[%clk 0:00:36.2]} 27. Rf4 {[%clk 0:00:47.2]} 27... Re7 {[%clk
0:00:25.6]} 28. Qd5+ {[%clk 0:00:45.4]} 28... Kh8 {[%clk 0:00:25.5]} 29. Qf3
{[%clk 0:00:18.9]} 29... gxf5 {[%clk 0:00:20.3]} 30. Rxf5 {[%clk 0:00:15.5]}
30... Rg8 {[%clk 0:00:18.7]} 31. Rf8 {[%clk 0:00:14.3]} 31... Rg7 {[%clk
0:00:14.4]} 32. Rxg8+ {[%clk 0:00:13.7]} 32... Rxg8 {[%clk 0:00:15.3]} 33. h3
{[%clk 0:00:10.3]} 33... Qg5 {[%clk 0:00:15.2]} 34. Qf6+ {[%clk 0:00:09.8]}
34... Qxf6 {[%clk 0:00:15.6]} 35. Rxf6 {[%clk 0:00:10.7]} 35... Kg7 {[%clk
0:00:16.1]} 36. Rd6 {[%clk 0:00:10.3]} 36... Rf8 {[%clk 0:00:15.7]} 37. Rd7+
{[%clk 0:00:10.1]} 37... Kg6 {[%clk 0:00:15.9]} 38. Rxa7 {[%clk 0:00:09.9]}
38... Rd8 {[%clk 0:00:16.5]} 39. Rb7 {[%clk 0:00:09.2]} 39... Rd6 {[%clk
0:00:17.1]} 40. Kf2 {[%clk 0:00:08.4]} 40... h5 {[%clk 0:00:17.4]} 41. Ke3
{[%clk 0:00:06.8]} 41... h4 {[%clk 0:00:17.3]} 42. Re7 {[%clk 0:00:05.7]} 42...
Kf6 {[%clk 0:00:17.2]} 43. Rh7 {[%clk 0:00:05.6]} 43... Kg5 {[%clk 0:00:17.5]}
44. Rh5+ {[%clk 0:00:05.8]} 44... Kg6 {[%clk 0:00:18]} 45. Rxh4 {[%clk
0:00:05.9]} 45... Re6+ {[%clk 0:00:18.4]} 46. Kd2 {[%clk 0:00:05.7]} 46... Rf6
{[%clk 0:00:18.8]} 47. Rh5 {[%clk 0:00:05.9]} 47... Re6 {[%clk 0:00:18.8]} 48.
Rd5 {[%clk 0:00:06]} 48... Rf6 {[%clk 0:00:19.1]} 49. h4 {[%clk 0:00:06.5]}
49... Rf2+ {[%clk 0:00:19.3]} 50. Ke3 {[%clk 0:00:06.2]} 50... Rxa2 {[%clk
0:00:20.2]} 51. Rd6+ {[%clk 0:00:05.8]} 51... Kg7 {[%clk 0:00:20.5]} 52. Rxb6
{[%clk 0:00:06.4]} 52... Rg2 {[%clk 0:00:21]} 53. Kf4 {[%clk 0:00:06.1]} 53...
Rd2 {[%clk 0:00:20.6]} 54. Kg5 {[%clk 0:00:06.5]} 54... Rxd3 {[%clk 0:00:21]}
55. Rb7+ {[%clk 0:00:07.1]} 55... Kg8 {[%clk 0:00:21.5]} 56. h5 {[%clk
0:00:07.7]} 56... Rd4 {[%clk 0:00:21.5]} 57. h6 {[%clk 0:00:07.9]} 57... Kh8
{[%clk 0:00:20.7]} 58. Kg6 {[%clk 0:00:07.1]} 58... Rd6+ {[%clk 0:00:20.2]} 59.
Kg5 {[%clk 0:00:07.1]} 59... Rd4 {[%clk 0:00:20.8]} 60. Kh5 {[%clk 0:00:06.9]}
60... Rxc4 {[%clk 0:00:19.7]} 61. g5 {[%clk 0:00:07]} 61... Rd4 {[%clk
0:00:19.7]} 62. g6 {[%clk 0:00:06]} 62... Rd8 {[%clk 0:00:20.3]} 63. Rc7 {[%clk
0:00:04.8]} 63... c4 {[%clk 0:00:19.5]} 64. Rxc4 {[%clk 0:00:04.6]} 64... Kg8
{[%clk 0:00:20]} 65. Rc7 {[%clk 0:00:04.6]} 65... Kh8 {[%clk 0:00:20.5]} 66.
Rh7+ {[%clk 0:00:04.3]} 66... Kg8 {[%clk 0:00:20.3]} 67. Rg7+ {[%clk 0:00:05.2]}
67... Kh8 {[%clk 0:00:20.3]} 68. Rb7 {[%clk 0:00:05.1]} 68... Re8 {[%clk
0:00:20.7]} 69. Kg5 {[%clk 0:00:03.1]} 69... Rf8 {[%clk 0:00:21.1]} 70. Rc7
{[%clk 0:00:02.6]} 70... Re8 {[%clk 0:00:21.3]} 71. Rf7 {[%clk 0:00:03.2]} 71...
Rd8 {[%clk 0:00:21.4]} 72. g7+ {[%clk 0:00:03.6]} 72... Kg8 {[%clk 0:00:20.6]}
73. Rf6 {[%clk 0:00:04]} 73... Kh7 {[%clk 0:00:20.2]} 74. Rf7 {[%clk 0:00:04.1]}
74... Rd5+ {[%clk 0:00:20.4]} 75. Rf5 {[%clk 0:00:04.2]} 75... Rd8 {[%clk
0:00:20.1]} 76. Rf8 {[%clk 0:00:04.4]} 76... Rd5+ {[%clk 0:00:19.6]} 77. Kf4
{[%clk 0:00:04.7]} 77... Rd4+ {[%clk 0:00:19.5]} 78. Ke5 {[%clk 0:00:04.4]}
78... Rg4 {[%clk 0:00:19.6]} 79. Rh8+ {[%clk 0:00:03.6]} 79... Kg6 {[%clk
0:00:14.2]} 80. g8=Q+ {[%clk 0:00:04.5]} 80... Kh5 {[%clk 0:00:14.6]} 81. Qf7+
{[%clk 0:00:04.7]} 81... Rg6 {[%clk 0:00:13.2]} 82. Qxg6+ {[%clk 0:00:04.7]}
82... Kxg6 {[%clk 0:00:13]} 83. Kf4 {[%clk 0:00:04.8]} 1-0